bitfinex/quotes_SOLUSD_20250705
["timestamp","ask_amount","ask_price","bid_price","bid_amount"]
[1751682948323,5.99678076,147.91,147.88,32.76223965]
[1751682948526,5.04089388,147.9,147.88,32.76223965]
[1751682948741,13.06712046,147.93,147.88,32.76223965]
[1751682948942,5.99678076,147.91,147.88,32.76223965]
[1751682949153,5.041164,147.9,147.88,32.76223965]
[1751682949352,5.99678076,147.91,147.88,32.76223965]
[1751682949531,5.04181785,147.9,147.88,32.76223965]
[1751682949733,5.99678076,147.91,147.88,32.76223965]
[1751682949935,5.04181785,147.9,147.88,32.76223965]
[1751682950251,5.99678076,147.92,147.88,32.76223965]
[1751682950453,5.04210134,147.91,147.88,32.76223965]
[1751682950749,5.04210134,147.9,147.88,32.76223965]
[1751682951055,5.99678076,147.92,147.88,32.76223965]
[1751682951241,5.04216125,147.91,147.88,32.76223965]
[1751682951438,5.04216125,147.9,147.88,32.76223965]
[1751682951741,5.99678076,147.91,147.88,32.76223965]
[1751682952050,5.04242266,147.9,147.88,32.76223965]
[1751682952251,5.99678076,147.91,147.88,32.76223965]
[1751682952455,5.04314245,147.9,147.88,32.76223965]
[1751682952754,5.99678076,147.91,147.88,32.76223965]
[1751682952949,5.04291856,147.9,147.88,32.76223965]
[1751682953255,5.99678076,147.91,147.88,32.76223965]
[1751682953554,5.04297875,147.9,147.88,32.76223965]
[1751682953756,5.99678076,147.91,147.88,32.76223965]
[1751682953955,5.04298021,147.9,147.88,32.76223965]
[1751682954254,5.99678076,147.91,147.88,32.76223965]
[1751682954435,5.04304303,147.9,147.88,32.76223965]
[1751682954643,5.99678076,147.91,147.88,32.76223965]
[1751682954951,5.04304303,147.9,147.88,32.76223965]
[1751682955149,5.99678076,147.91,147.88,32.76223965]
[1751682955336,5.04311224,147.9,147.88,32.76223965]
[1751682955537,6.30684755,147.93,147.88,32.76223965]
[1751682955737,5.99678076,147.91,147.88,32.76223965]
[1751682955938,5.04311805,147.9,147.88,32.76223965]
[1751682956158,5.99678076,147.91,147.88,32.76223965]
[1751682956345,5.04318645,147.9,147.88,32.76223965]
[1751682956544,5.99678076,147.91,147.88,32.76223965]
[1751682956746,5.04318791,147.9,147.88,32.76223965]
[1751682956947,5.04318791,147.89,147.88,32.76223965]
[1751682960232,5.04318791,147.9,147.88,32.76223965]
[1751682960440,3.8350718,147.91,147.88,32.76223965]
[1751682960635,5.04821942,147.9,147.88,32.76223965]
[1751682960868,3.8350718,147.92,147.88,32.76223965]
[1751682961158,5.04844448,147.91,147.88,32.76223965]
[1751682961467,5.04844448,147.9,147.88,32.76223965]
[1751682961668,3.8350718,147.92,147.88,32.76223965]
[1751682961845,5.04843634,147.91,147.88,32.76223965]
[1751682962045,5.04843634,147.9,147.88,32.76223965]
[1751682962262,3.8350718,147.92,147.88,32.76223965]
[1751682962462,5.04875632,147.91,147.88,32.76223965]
[1751682962663,5.04875632,147.9,147.88,32.76223965]
[1751682962846,3.8350718,147.92,147.88,32.76223965]
[1751682963148,5.04908503,147.91,147.88,32.76223965]
[1751682963346,5.04908503,147.9,147.88,36.59731145]
[1751682963546,3.8350718,147.92,147.88,36.59731145]
[1751682963747,5.04907098,147.91,147.88,36.59731145]
[1751682963945,5.04907098,147.9,147.88,36.59731145]
[1751682964248,3.8350718,147.92,147.88,36.59731145]
[1751682964460,94.70684755,147.94,147.88,36.59731145]
[1751682964461,5.04905572,147.91,147.88,36.59731145]
[1751682964664,5.04905572,147.9,147.88,36.59731145]
[1751682964967,3.8350718,147.93,147.88,32.76223965]
[1751682965268,5.04939265,147.92,147.88,36.59731145]
[1751682965570,5.04939265,147.91,147.88,36.59731145]
[1751682965861,5.04939265,147.9,147.89,3.8350718]
[1751682966067,5.04939265,147.92,147.89,3.8350718]
[1751682966270,5.04939265,147.91,147.9,26.0]
[1751682966592,5.04939265,147.92,147.9,26.0]
[1751682966773,88.4,147.94,147.9,26.0]
[1751682966946,8.8845929,147.93,147.9,26.0]
[1751682967140,5.0495211,147.92,147.9,26.0]
[1751682967340,3.8350718,147.93,147.9,26.0]
[1751682967567,5.0492499,147.92,147.9,26.0]
[1751682967868,3.8350718,147.93,147.9,26.0]
[1751682968071,5.04959865,147.92,147.9,32.76103778]
[1751682968259,3.8350718,147.93,147.9,32.76103778]
[1751682968459,5.04935955,147.92,147.9,32.76103778]
[1751682968672,3.8350718,147.93,147.9,32.76103778]
[1751682968848,5.04995848,147.92,147.9,32.76103778]
[1751682969050,3.8350718,147.93,147.9,32.76103778]
[1751682969263,5.05015108,147.92,147.9,32.76103778]
[1751682969465,3.8350718,147.93,147.9,32.76103778]
[1751682969649,5.04982866,147.92,147.9,32.76103778]
[1751682969848,5.04982866,147.91,147.9,32.76103778]
[1751682972261,5.04982866,147.92,147.9,32.76103778]
[1751682972559,3.8350718,147.93,147.9,32.76103778]
[1751682972868,5.04955889,147.92,147.9,32.76103778]
[1751682973067,3.8350718,147.93,147.9,32.76103778]
[1751682973274,5.04945724,147.92,147.9,32.76103778]
[1751682973482,88.4,147.94,147.9,36.59610958]
[1751682973646,5.0495853,147.93,147.9,36.59610958]
[1751682973845,3.8350718,147.95,147.9,36.59610958]
[1751682974045,5.04958382,147.94,147.9,36.59610958]
[1751682974260,5.04958382,147.93,147.9,36.59610958]
[1751682974467,3.8350718,147.95,147.9,36.59610958]
[1751682974657,5.04883559,147.94,147.9,36.59610958]
[1751682974970,5.04883559,147.93,147.9,36.59610958]
[1751682975160,3.8350718,147.95,147.9,36.59610958]
[1751682975365,5.04869321,147.94,147.9,36.59610958]
[1751682975552,3.8350718,147.95,147.9,36.59610958]
[1751682975553,5.04869321,147.93,147.9,36.59610958]
[1751682975753,3.8350718,147.95,147.9,36.59610958]
[1751682975955,5.04842473,147.94,147.9,36.59610958]
[1751682976163,5.04842473,147.93,147.9,36.59610958]
[1751682976369,3.8350718,147.95,147.9,36.59610958]
[1751682976672,5.04798628,147.94,147.9,36.59610958]
[1751682976883,5.04798628,147.93,147.9,36.59610958]
[1751682977082,3.8350718,147.95,147.9,36.59610958]
[1751682977371,5.04767744,147.94,147.9,36.59610958]
[1751682977568,5.04767744,147.93,147.9,36.59610958]
[1751682977748,94.90684755,147.96,147.9,36.59610958]
[1751682977949,8.88248881,147.95,147.9,36.59610958]
[1751682978146,5.04741701,147.94,147.9,36.59610958]
[1751682978375,5.04741701,147.93,147.9,36.59610958]
[1751682978679,3.8350718,147.95,147.9,36.59610958]
[1751682978863,8.88222142,147.94,147.9,36.59610958]
[1751682979064,5.04714962,147.93,147.9,36.59610958]
[1751682979270,3.8350718,147.94,147.9,36.59610958]
[1751682979470,5.04689197,147.93,147.9,36.59610958]
[1751682979780,3.8350718,147.94,147.9,36.59610958]
[1751682979964,5.04689197,147.93,147.9,36.59610958]
[1751682980164,3.8350718,147.94,147.9,36.59610958]
[1751682980365,5.04633034,147.93,147.9,36.59610958]
[1751682980558,3.8350718,147.94,147.9,36.59610958]
[1751682980760,5.04633034,147.93,147.9,36.59610958]
[1751682980959,3.8350718,147.94,147.9,36.59610958]
[1751682981162,5.04633034,147.93,147.9,36.59610958]
[1751682981381,3.8350718,147.94,147.9,36.59610958]
[1751682981591,5.04693287,147.93,147.9,36.59610958]
[1751682981884,3.8350718,147.94,147.9,36.59610958]
[1751682982057,5.04693287,147.93,147.9,36.59610958]
[1751682982381,3.8350718,147.94,147.9,36.59610958]
[1751682982574,5.04799102,147.93,147.9,36.59610958]
[1751682982755,3.8350718,147.94,147.9,36.59610958]
[1751682982956,5.04766243,147.93,147.9,36.59610958]
[1751682983176,3.8350718,147.94,147.9,36.59610958]
[1751682983382,5.04797454,147.93,147.9,36.59610958]
[1751682983565,3.8350718,147.94,147.9,36.59610958]
[1751682983760,5.04796578,147.93,147.9,36.59610958]
[1751682983967,3.8350718,147.95,147.9,36.59610958]
[1751682984273,5.04819213,147.94,147.9,36.59610958]
[1751682984460,5.04819213,147.93,147.9,32.76103778]
[1751682984660,3.8350718,147.94,147.9,32.76103778]
[1751682984875,5.0490175,147.93,147.9,32.76103778]
[1751682985081,5.0490175,147.92,147.9,32.76103778]
[1751682985285,3.8350718,147.94,147.9,32.76103778]
[1751682985474,5.04976897,147.93,147.9,32.76103778]
[1751682985669,5.04976897,147.92,147.9,32.76103778]
[1751682985871,3.8350718,147.94,147.9,32.76103778]
[1751682986065,5.04963319,147.93,147.9,32.76103778]
[1751682986285,5.04963319,147.92,147.9,32.76103778]
[1751682986472,3.8350718,147.94,147.9,32.76103778]
[1751682986673,5.05033161,147.93,147.9,32.76103778]
[1751682986969,5.05033161,147.92,147.9,32.76103778]
[1751682987284,8.88669493,147.91,147.86,1.6574]
[1751682987478,5.05162313,147.9,147.89,3.8350718]
[1751682987786,5.0515896,147.92,147.9,26.0]
[1751682987966,5.0515896,147.91,147.9,26.0]
[1751682988279,5.0515896,147.93,147.9,29.8350718]
[1751682988471,5.0515896,147.92,147.91,3.8350718]
[1751682989185,0.2,147.96,147.91,36.59593989]
[1751682989507,5.05233578,147.95,147.92,3.8350718]
[1751682989784,5.05233578,147.94,147.93,26.0]
[1751682990661,5.05233578,147.94,147.92,3.8350718]
[1751682990865,5.05233578,147.93,147.92,3.8350718]
[1751682991985,5.05233578,147.93,147.92,10.59548283]
[1751682993884,5.05195882,147.95,147.92,10.59548283]
[1751682994062,0.2,147.96,147.93,3.8350718]
[1751682994258,5.05216628,147.95,147.94,26.0]
[1751682994776,5.05216628,147.95,147.93,3.8350718]
[1751682994984,0.2,147.96,147.93,3.8350718]
[1751682995186,5.05141093,147.95,147.93,3.8350718]
[1751682995385,0.2,147.96,147.94,6.75949709]
[1751682995588,5.05071941,147.95,147.94,6.75949709]
[1751683001398,5.05071941,147.95,147.92,23.66143861]
[1751683001608,0.2,147.96,147.93,3.8350718]
[1751683001778,5.04950682,147.95,147.93,3.8350718]
[1751683001977,0.2,147.96,147.93,3.8350718]
[1751683002279,5.04950682,147.95,147.93,3.8350718]
[1751683002482,0.2,147.96,147.93,3.8350718]
[1751683002684,0.2,147.96,147.94,6.75949709]
[1751683002685,5.04974483,147.95,147.94,6.75949709]
[1751683004100,5.04974483,147.95,147.92,23.66143861]
[1751683004303,0.2,147.96,147.93,3.8350718]
[1751683004481,5.05021849,147.95,147.94,26.0]
[1751683005203,5.05021849,147.95,147.93,3.8350718]
[1751683005388,0.2,147.96,147.93,3.8350718]
[1751683005590,5.05003569,147.95,147.94,6.75949709]
[1751683007194,5.05003569,147.95,147.94,10.59456889]
[1751683007405,0.2,147.96,147.94,10.59456889]
[1751683009798,0.2,147.96,147.94,6.75949709]
[1751683010899,5.05091773,147.95,147.94,6.75949709]
[1751683014818,5.05091773,147.95,147.94,3.8350718]
[1751683015131,0.2,147.96,147.95,26.0]
[1751683015429,5.25125385,147.96,147.95,29.8350718]
[1751683015608,5.25125385,147.96,147.95,26.0]
[1751683017031,5.25125385,147.96,147.95,36.59411201]
[1751683017201,0.2,147.96,147.95,36.59411201]
[1751683019208,0.2,147.97,147.95,36.59411201]
[1751683019424,0.2,147.97,147.96,3.8350718]
[1751683020125,0.2,147.98,147.96,3.8350718]
[1751683020302,0.2,147.98,147.97,3.8350718]
[1751683020502,0.2,148.01,148.0,26.0]
[1751683020703,0.2,148.01,148.0,29.8350718]
[1751683022514,0.2,148.01,148.0,36.59182855]
[1751683024729,0.2,148.02,148.0,36.59182855]
[1751683024909,0.2,148.02,148.01,3.8350718]
[1751683025930,0.2,148.02,148.01,10.59137204]
[1751683026727,0.2,148.02,148.01,6.75630024]
[1751683026924,0.2,148.02,148.01,10.59137204]
[1751683027332,0.2,148.05,148.04,26.0]
[1751683027517,0.2,148.05,148.04,29.8350718]
[1751683029006,0.2,148.05,148.04,32.75493109]
[1751683029333,4.0350718,148.05,148.04,26.0]
[1751683029510,4.0350718,148.05,148.03,6.75527491]
[1751683029822,0.2,148.05,148.03,6.75527491]
[1751683030442,0.2,148.05,148.03,10.59034671]
[1751683031825,0.2,148.05,148.03,12.73476914]
[1751683032204,0.2,148.05,148.03,6.75527491]
[1751683033531,0.2,148.05,148.03,12.73476914]
[1751683034802,0.2,148.05,148.04,12.73442532]
[1751683037038,0.2,148.07,148.06,26.0]
[1751683037240,0.2,148.07,148.06,31.97949423]
[1751683038834,0.2,148.07,148.06,38.73351287]
[1751683040112,0.2,148.07,148.06,6.75401864]
[1751683040319,0.2,148.07,148.06,32.75401864]
[1751683041347,0.2,148.07,148.06,38.73351287]
[1751683044440,0.2,148.07,148.06,32.75401864]
[1751683044739,0.2,148.07,148.06,38.73351287]
[1751683051544,0.2,148.07,148.06,12.73351287]
[1751683051855,10.2,148.12,148.09,26.0]
[1751683053044,10.2,148.12,148.1,6.75219446]
[1751683055542,10.2,148.12,148.11,12.7312328]
[1751683058146,10.2,148.13,148.11,12.7312328]
[1751683058147,10.2,148.13,148.11,31.38088166]
[1751683058347,10.2,148.13,148.12,31.97949423]
[1751683061226,10.2,148.13,148.12,38.73077697]
[1751683064234,10.2,148.13,148.12,32.75128274]
[1751683070956,10.2,148.13,148.12,38.73077697]
[1751683074656,10.2,148.13,148.12,32.75128274]
[1751683074855,16.17949423,148.13,148.12,26.0]
[1751683075362,16.17949423,148.13,148.11,6.75157772]
[1751683076268,16.17949423,148.13,148.1,6.75219446]
[1751683077570,5.97949423,148.12,148.1,6.75219446]
[1751683079050,16.17949423,148.13,148.1,6.75219446]
[1751683081745,10.2,148.13,148.1,6.75219446]
[1751683082062,15.2422704,148.13,148.1,12.73168869]
[1751683082235,10.2,148.13,148.1,12.73168869]
[1751683082662,10.2,148.13,148.12,26.0]
[1751683082962,10.2,148.13,148.11,5.97949423]
[1751683083963,10.2,148.13,148.12,31.97949423]
[1751683085757,10.2,148.13,148.12,32.75128274]
[1751683085976,10.2,148.13,148.12,38.73077697]
[1751683090262,10.2,148.13,148.12,32.75128274]
[1751683090549,21.22629085,148.13,148.11,6.75156436]
[1751683090743,16.17949423,148.13,148.11,6.75156436]
[1751683091051,16.17949423,148.13,148.09,6.75265041]
[1751683091254,5.04676508,148.12,148.11,26.0]
[1751683093863,5.04676508,148.12,148.1,6.75176959]
[1751683093864,11.02625931,148.12,148.1,6.75176959]
[1751683094226,5.04902369,148.11,148.1,6.75176959]
[1751683095461,5.05085854,148.11,148.09,6.75265041]
[1751683095660,5.97949423,148.12,148.09,6.75265041]
[1751683095862,5.05078188,148.11,148.09,6.75265041]
[1751683096160,5.97949423,148.12,148.09,6.75265041]
[1751683096359,5.05188614,148.11,148.09,6.75265041]
[1751683096578,5.97949423,148.12,148.09,6.75265041]
[1751683096784,5.05189488,148.11,148.09,6.75265041]
[1751683096980,16.17949423,148.13,148.09,6.75265041]
[1751683097163,5.05189777,148.12,148.09,6.75265041]
[1751683097362,5.05189777,148.11,148.09,6.75265041]
[1751683097562,16.17949423,148.13,148.09,6.75265041]
[1751683097770,5.05233548,148.12,148.09,6.75265041]
[1751683097983,5.05233548,148.11,148.09,6.75265041]
[1751683098192,10.2,148.13,148.09,6.75265041]
[1751683098373,5.0527769,148.12,148.09,6.75265041]
[1751683098572,5.0527769,148.11,148.09,6.75265041]
[1751683098770,16.17949423,148.13,148.09,6.75265041]
[1751683098972,5.05245176,148.12,148.09,6.75265041]
[1751683099186,5.05245176,148.11,148.09,6.75265041]
[1751683099371,16.17949423,148.13,148.09,6.75265041]
[1751683099667,5.05291347,148.12,148.09,6.75265041]
[1751683099868,5.05291347,148.11,148.09,6.75265041]
[1751683100080,5.97949423,148.12,148.09,6.75265041]
[1751683100293,5.05276799,148.11,148.09,6.75265041]
[1751683100492,5.97949423,148.12,148.09,6.75265041]
[1751683100683,5.05339374,148.11,148.09,6.75265041]
[1751683100989,5.97949423,148.12,148.09,6.75265041]
[1751683101176,5.053385,148.11,148.09,12.73214464]
[1751683101362,16.17949423,148.13,148.09,12.73214464]
[1751683101559,5.05334754,148.12,148.09,12.73214464]
[1751683101760,5.05334754,148.11,148.09,6.75265041]
[1751683101992,16.17949423,148.13,148.09,6.75265041]
[1751683102184,5.05335191,148.12,148.09,6.75265041]
[1751683102378,5.05335191,148.11,148.09,6.75265041]
[1751683102687,16.17949423,148.13,148.09,6.75265041]
[1751683102893,5.05331016,148.12,148.09,6.75265041]
[1751683103095,5.05331016,148.11,148.09,6.75265041]
[1751683103295,10.2,148.13,148.09,6.75265041]
[1751683103499,5.05329789,148.12,148.09,6.75265041]
[1751683103681,5.05329789,148.11,148.09,6.75265041]
[1751683103980,16.17949423,148.13,148.09,6.75265041]
[1751683104177,5.05329789,148.12,148.09,6.75265041]
[1751683104480,5.05329789,148.11,148.09,6.75265041]
[1751683104689,16.17949423,148.13,148.09,6.75265041]
[1751683104892,5.05518075,148.12,148.09,6.75265041]
[1751683105183,5.05518075,148.11,148.09,6.75265041]
[1751683105388,16.17949423,148.13,148.09,6.75265041]
[1751683105579,5.05551101,148.12,148.09,6.75265041]
[1751683105781,5.05551101,148.11,148.09,6.75265041]
[1751683105985,5.97949423,148.12,148.09,6.75265041]
[1751683106186,5.05541953,148.11,148.09,6.75265041]
[1751683106382,5.97949423,148.12,148.09,6.75265041]
[1751683106383,5.05541953,148.1,148.09,6.75265041]
[1751683106767,5.05541953,148.1,148.09,12.73214464]
[1751683109809,5.05541953,148.1,148.09,10.57638226]
[1751683111709,5.05541953,148.1,148.09,6.75265041]
[1751683117210,8.87915138,148.1,148.07,6.7531596]
[1751683117410,8.87915138,148.09,148.07,6.7531596]
[1751683117724,5.05541953,148.08,148.07,6.7531596]
[1751683118108,3.82373185,148.1,148.07,6.7531596]
[1751683118318,5.05566588,148.09,148.07,6.7531596]
[1751683118497,5.05566588,148.08,148.07,6.7531596]
[1751683119091,8.87939773,148.08,148.05,26.1]
[1751683119320,106.7418,148.13,148.05,26.1]
[1751683119321,3.82373185,148.06,148.05,0.1]
[1751683119502,8.87939773,148.06,148.05,0.1]
[1751683119909,11.036068,148.06,148.05,0.1]
[1751683120297,5.05566588,148.06,148.05,0.1]
[1751683120504,5.98040212,148.1,148.05,38.83487695]
[1751683120708,5.05133741,148.09,148.06,5.98040212]
[1751683120935,5.05133741,148.08,148.06,5.98040212]
[1751683121234,5.98040212,148.1,148.07,6.7535625]
[1751683121432,5.05062892,148.09,148.07,6.7535625]
[1751683121621,5.05062892,148.08,148.07,6.7535625]
[1751683122333,5.98040212,148.11,148.07,6.7535625]
[1751683122539,5.05005688,148.1,148.07,12.73396462]
[1751683122837,5.05005688,148.09,148.07,6.7535625]
[1751683123020,5.98040212,148.11,148.07,12.73396462]
[1751683123221,5.04972377,148.1,148.07,12.73396462]
[1751683123422,5.04972377,148.09,148.07,12.73396462]
[1751683123641,5.98040212,148.11,148.07,12.73396462]
[1751683123824,5.04953331,148.1,148.07,12.73396462]
[1751683124015,5.04953331,148.09,148.07,12.73396462]
[1751683124217,5.98040212,148.11,148.07,12.73396462]
[1751683124443,5.04872864,148.1,148.07,12.73396462]
[1751683124638,5.04872864,148.09,148.07,12.73396462]
[1751683124823,5.98040212,148.11,148.07,12.73396462]
[1751683125020,5.04872864,148.1,148.07,12.73396462]
[1751683125220,5.04872864,148.09,148.08,26.0]
[1751683126834,5.04872864,148.09,148.07,6.75316207]
[1751683127033,5.98040212,148.09,148.07,6.75316207]
[1751683127338,5.04761034,148.08,148.06,6.75397448]
[1751683127520,5.98040212,148.07,148.05,26.1]
[1751683127713,5.98040212,148.06,148.05,26.1]
[1751683128426,11.02781891,148.06,148.05,26.1]
[1751683131017,5.98040212,148.07,148.05,26.1]
[1751683131844,5.98040212,148.07,148.05,32.85446415]
[1751683134447,5.98040212,148.06,148.05,26.1]
[1751683134849,5.98040212,148.06,148.05,0.1]
[1751683135550,11.02362574,148.06,148.05,0.1]
[1751683136435,5.04322362,148.06,148.05,0.1]
[1751683136642,11.02362574,148.06,148.05,0.1]
[1751683138325,5.98040212,148.06,148.05,0.1]
[1751683139051,11.02362574,148.06,148.05,0.1]
[1751683139281,5.98040212,148.06,148.05,0.1]
[1751683139841,11.02362574,148.06,148.05,0.1]
[1751683140134,5.98040212,148.06,148.05,0.1]
[1751683140744,11.02362574,148.06,148.05,0.1]
[1751683140931,5.98040212,148.06,148.05,0.1]
[1751683141530,11.02362574,148.06,148.05,0.1]
[1751683141735,3.8273371,148.06,148.05,0.1]
[1751683142144,3.8273371,148.06,148.05,26.1]
[1751683142327,8.87056072,148.06,148.05,26.1]
[1751683142649,5.04322362,148.07,148.06,26.0]
[1751683142850,8.87056072,148.07,148.06,26.0]
[1751683143148,97.27056072,148.07,148.05,0.1]
[1751683143339,8.87056072,148.06,148.05,26.1]
[1751683144439,8.87056072,148.06,148.05,0.1]
[1751683145651,8.87056072,148.06,148.05,26.1]
[1751683145950,11.02476408,148.06,148.05,26.1]
[1751683146456,5.04322362,148.06,148.05,26.1]
[1751683146770,11.02476408,148.06,148.05,26.1]
[1751683150239,5.04322362,148.06,148.05,26.1]
[1751683150551,88.4,148.07,148.05,32.85447483]
[1751683154282,5.98154046,148.08,148.05,32.85447483]
[1751683154559,5.04236094,148.07,148.05,32.85447483]
[1751683154754,5.98154046,148.08,148.05,32.85447483]
[1751683154941,5.0424039,148.07,148.05,32.85447483]
[1751683155139,5.98154046,148.08,148.05,32.85447483]
[1751683155449,5.0435265,148.07,148.05,32.85447483]
[1751683155752,5.98154046,148.09,148.05,32.85447483]
[1751683155949,5.04352939,148.08,148.05,32.85447483]
[1751683156152,5.04352939,148.07,148.05,32.85447483]
[1751683156346,5.98154046,148.09,148.05,32.85447483]
[1751683156660,5.04452379,148.08,148.05,32.85447483]
[1751683156860,5.04452379,148.07,148.05,32.85447483]
[1751683157062,5.98154046,148.09,148.05,32.85447483]
[1751683157246,5.04562724,148.08,148.05,32.85447483]
[1751683157555,5.04562724,148.07,148.05,32.85447483]
[1751683157757,5.98154046,148.09,148.05,32.85447483]
[1751683157963,5.04562724,148.08,148.05,32.85447483]
[1751683158142,5.04562724,148.07,148.05,32.85447483]
[1751683158342,5.98154046,148.09,148.05,32.85447483]
[1751683158551,5.04659076,148.08,148.05,32.85447483]
[1751683158748,5.04659076,148.07,148.05,38.83601529]
[1751683159053,5.98154046,148.09,148.05,32.85447483]
[1751683159364,5.04765875,148.08,148.05,32.85447483]
[1751683159566,5.04765875,148.07,148.05,32.85447483]
[1751683159749,5.98154046,148.09,148.05,32.85447483]
[1751683159952,11.02919921,148.08,148.05,32.85447483]
[1751683160266,5.04765875,148.07,148.05,32.85447483]
[1751683160566,5.04765875,148.06,148.05,32.85447483]
[1751683163554,5.04765875,148.06,148.05,38.83601529]
[1751683163957,12.29511363,148.11,148.05,38.83601529]
[1751683164152,5.05256767,148.1,148.09,26.0]
[1751683165369,5.05256767,148.1,148.09,32.75265041]
[1751683168179,5.05256767,148.1,148.09,38.728264]
[1751683171274,10.2,148.13,148.09,38.728264]
[1751683171473,5.04993299,148.12,148.09,38.728264]
[1751683171660,5.04993299,148.11,148.09,38.728264]
[1751683171860,10.2,148.13,148.09,38.728264]
[1751683172064,5.05016932,148.12,148.09,38.728264]
[1751683172266,5.05016932,148.11,148.09,38.728264]
[1751683172466,10.2,148.13,148.09,38.728264]
[1751683172763,5.0490075,148.12,148.09,38.728264]
[1751683172964,5.0490075,148.11,148.09,38.728264]
[1751683173170,10.2,148.13,148.09,38.728264]
[1751683173380,5.04770253,148.12,148.09,38.728264]
[1751683173566,5.04770253,148.11,148.09,38.728264]
[1751683173765,10.2,148.13,148.09,38.728264]
[1751683174079,5.04770835,148.12,148.09,38.728264]
[1751683174283,10.2,148.13,148.12,26.0]
[1751683174467,15.24693807,148.13,148.12,26.0]
[1751683175052,15.24693807,148.13,148.12,32.75128274]
[1751683178389,21.22255166,148.13,148.09,26.0]
[1751683178564,5.97561359,148.1,148.06,6.75401864]
[1751683178764,5.97561359,148.09,148.08,26.0]
[1751683179861,5.97561359,148.09,148.05,6.07561359]
[1751683179862,5.97561359,148.09,148.07,6.75312728]
[1751683180273,105.35085608,148.13,148.07,6.75312728]
[1751683180274,5.97561359,148.08,148.07,6.75312728]
[1751683180580,11.01722929,148.09,148.07,32.75312728]
[1751683180773,5.97561359,148.09,148.07,32.75312728]
[1751683180974,5.04144707,148.08,148.07,32.75312728]
[1751683181560,5.04144707,148.08,148.07,26.0]
[1751683182185,11.01706066,148.08,148.07,26.0]
[1751683182390,11.01706066,148.08,148.05,0.1]
[1751683182566,13.31705275,148.09,148.05,0.1]
[1751683182567,5.97561359,148.06,148.05,0.1]
[1751683182772,11.01706066,148.06,148.05,26.1]
[1751683183894,11.01706066,148.06,148.05,0.1]
[1751683184062,11.01706066,148.06,148.05,26.1]
[1751683185378,11.01706066,148.06,148.05,0.1]
[1751683186376,17.7710793,148.06,148.05,0.1]
[1751683186869,5.04144707,148.06,148.05,0.1]
[1751683187181,11.01706066,148.06,148.05,0.1]
[1751683190584,17.7710793,148.06,148.05,0.1]
[1751683192876,17.76539195,148.06,148.05,0.1]
[1751683197266,11.01137331,148.06,148.05,0.1]
[1751683197689,5.03575972,148.06,148.05,0.1]
[1751683197894,11.01137331,148.06,148.05,0.1]
[1751683200779,5.03575972,148.06,148.05,0.1]
[1751683201997,94.37561359,148.07,148.05,0.1]
[1751683203992,5.97561359,148.06,148.05,0.1]
[1751683204783,94.37561359,148.07,148.05,0.1]
[1751683206607,5.97561359,148.06,148.05,0.1]
[1751683213609,94.37561359,148.07,148.06,26.0]
[1751683213904,99.40650685,148.07,148.06,26.0]
[1751683217816,97.2580051,148.07,148.06,26.0]
[1751683223512,97.2580051,148.07,148.05,0.1]
[1751683223688,5.03089326,148.06,148.05,26.1]
[1751683227296,5.03089326,148.06,148.05,0.1]
[1751683227494,5.03089326,148.06,148.05,32.85447483]
[1751683229214,5.03089326,148.06,148.05,26.1]
[1751683256460,5.03089326,148.06,148.05,32.85447483]
[1751683263446,5.03089326,148.06,148.05,26.1]
[1751683263654,15.61202374,148.06,148.05,26.1]
[1751683263950,5.03089326,148.06,148.04,6.85491946]
[1751683264127,6.1891,148.09,148.04,6.85491946]
[1751683264128,5.03089326,148.05,148.04,6.85491946]
[1751683265827,5.03089326,148.05,148.04,10.6820313]
[1751683275073,5.03089326,148.05,148.04,6.85491946]
[1751683275234,5.03089326,148.05,148.04,26.1]
[1751683275574,8.8580051,148.05,148.04,26.1]
[1751683294278,5.03089326,148.05,148.04,26.1]
[1751683294568,8.8580051,148.05,148.04,26.1]
[1751683310468,3.82711184,148.05,148.04,26.1]
[1751683310674,8.86942164,148.05,148.04,26.1]
[1751683329896,5.0423098,148.05,148.04,26.1]
[1751683330270,8.86942164,148.05,148.04,26.1]
[1751683340206,3.82711184,148.05,148.04,26.1]
[1751683340386,8.87189614,148.05,148.04,26.1]
[1751683343211,8.87189614,148.05,148.04,0.1]
[1751683348816,15.17787652,148.05,148.04,0.1]
[1751683351403,11.35076468,148.05,148.04,0.1]
[1751683351603,15.17787652,148.05,148.04,0.1]
[1751683354125,3.82711184,148.05,148.04,0.1]
[1751683354303,15.16800959,148.05,148.04,0.1]
[1751683356023,8.86751084,148.05,148.04,0.1]